Cogmind - Beta 13 @@@ ROGUE MODE // 2024.04.13 @ 22:25:45 Player: lever1209 Result: Destroyed by G-34 Mercenary with Small Laser Performance ------------- Evolutions (1) 500 Regions Visited (4) 800 Robots Destroyed (1) 5 Value Destroyed (10) 10 Prototype IDs (1) 20 Alien Tech Used (0) 0 Bonus (900) 900 TOTAL SCORE: 2235 Bonus ------- Pacifist 200 Entered Garrisons 200 Used RIF Installer 500 Cogmind --------- Core Integrity 0/400 Matter 241/300 Energy 100/100 System Corruption 1% Temperature Cool (6) Movement Core (50) Location -9/Garrison Parts ------- > --- POWER (1) -------- (None) > --- PROPULSION (3) --- (None) > --- UTILITY (3) ------ (None) > --- WEAPON (2) ------- (None) > --- INVENTORY (5) ---- (None) Peak State ------------ > --- POWER ------------ Light Ion Engine > --- PROPULSION ------- Backup Propulsion I Backup Propulsion I > --- UTILITY ---------- Backup Plating I Backup Plating I > --- WEAPON ----------- Backup Laser I Backup Laser I > --- INVENTORY -------- (None) [Rating: 7] Favorites ----------- Power Light Ion Engine Engine Light Ion Engine Propulsion Flight Unit Hover Unit Backup Propulsion I Flight Unit Flight Unit Utility Backup Plating I Protection Backup Plating I Weapon Backup Laser I Energy Gun Backup Laser I Build | -11 -10 -9 -9 -9 ------- Run | Yrd Mat Mat Sto Gar Slots Evolved 2 | . . 2 . . Power . | . . . . . Propulsion 1 | . . 1 . . Utility 1 | . . 1 . . Weapon . | . . . . . Parts Attached 10 | 1 . 4 . 5 Power 1 | 1 . . . . Engine 1 | 1 . . . . Core . | . . . . . Reactor . | . . . . . Propulsion 7 | . . 2 . 5 Treads . | . . . . . Leg . | . . . . . Wheel . | . . . . . Hover 2 | . . 2 . . Flight 5 | . . . . 5 Utility 1 | . . 1 . . Device . | . . . . . Storage . | . . . . . Processor . | . . . . . Hackware . | . . . . . Protection 1 | . . 1 . . Artifact . | . . . . . Weapon 1 | . . 1 . . Energy Gun 1 | . . 1 . . Energy Cannon . | . . . . . Ballistic Gun . | . . . . . Ballistic Cannon . | . . . . . Launcher . | . . . . . Special Weapon . | . . . . . Impact Weapon . | . . . . . Slashing Weapon . | . . . . . Piercing Weapon . | . . . . . Special Melee Weapon . | . . . . . Unidentified Prototypes 1 | . . 1 . . Parts Lost 6 | . . . . 6 Power 1 | . . . . 1 Propulsion 5 | . . . . 5 Utility . | . . . . . Weapon . | . . . . . Highest Loss Streak 5 | . . . . 5 To Critical Strikes . | . . . . . Average Slot Usage (%) 14 | . 14 13 11 15 Engine 8 | . 14 11 11 4 Flight 5 | . . . . 11 Naked Turns 4 | . . . . 4 Heaviest Build 7 | 3 3 7 3 3 Greatest Support 12 | 3 3 12 3 8 Greatest Overweight (x) 1 | . . 1 . . Average Overweight (x) . | . . . . . Largest Inventory Capacity 5 | 5 5 5 5 5 Average Capacity 5 | 5 5 5 5 5 Most Carried . | . . . . . Average Carried . | . . . . . Final Capacity 5 | 5 5 5 5 5 Final Carried . | . . . . . Class Distribution -------------------- 100% | Mutant Dominant Class ---------------- Mutant | -10/Materials Mutant | -9/Materials Mutant | -9/Storage Mutant | -9/Garrison Resources | -11 -10 -9 -9 -9 ----------- Run | Yrd Mat Mat Sto Gar Matter Collected 202 | 174 . . . 28 Remotely . | . . . . . Salvage Created 16 | . . . . 16 Parts 3 | . . . . 3 Haulers Intercepted . | . . . . . Recyclers Shooed . | . . . . . Parts Field Recycled . | . . . . . Retrieved Matter . | . . . . . Parts Self-Destructed . | . . . . . Prevented . | . . . . . Kills | -11 -10 -9 -9 -9 ------- Run | Yrd Mat Mat Sto Gar Combat Hostiles Destroyed 1 | . . . . 1 Melee 1 | . . . . 1 Classes Destroyed 1 | . . . . 1 Swarmer 1 | . . . . 1 Best Kill Streak 1 | . . . . 1 Combat Bots Only 1 | . . . . 1 Max Kills in Single Turn 1 | . . . . 1 Gunslinging . | . . . . . Exploded . | . . . . . Melee 1 | . . . . 1 Uniques/NPCs Destroyed . | . . . . . Combat | -11 -10 -9 -9 -9 -------- Run | Yrd Mat Mat Sto Gar Hostile Shots Fired 103 | . . 4 2 97 Missed 50 | . . 3 1 46 Damage Taken 551 | . . 17 14 520 Core 404 | . . 17 14 373 Absorbed by Shields . | . . . . . Core Remaining (%) 100 | 100 100 . . . Volleys Fired . | . . . . . Largest . | . . . . . Hottest . | . . . . . Shots Fired . | . . . . . Gun . | . . . . . Cannon . | . . . . . Launcher . | . . . . . Special . | . . . . . Kinetic . | . . . . . Thermal . | . . . . . Explosive . | . . . . . Electromagnetic . | . . . . . Robot Hit Streak . | . . . . . Robot Miss Streak . | . . . . . Penetration Max . | . . . . . Secondary Targets . | . . . . . Shots Hit Robots . | . . . . . Core Hits 4 | . . . . 4 Critical Kills . | . . . . . Critical Parts Destroyed . | . . . . . Critical Strikes . | . . . . . Melee Attacks . | . . . . . Impact . | . . . . . Slashing . | . . . . . Piercing . | . . . . . Sneak Attacks . | . . . . . Combat Hostiles . | . . . . . Follow-up Attacks . | . . . . . Damage Inflicted 20 | . . . . 20 Guns . | . . . . . Cannons . | . . . . . Explosions . | . . . . . Melee . | . . . . . Ramming 20 | . . . . 20 Kinetic . | . . . . . Thermal . | . . . . . Explosive . | . . . . . Electromagnetic . | . . . . . Impact . | . . . . . Slashing . | . . . . . Piercing . | . . . . . Highest Corruption 1 | . . . . 1 Average Corruption 1 | . . . . 1 Corruption Purged . | . . . . . Corruption Blocked . | . . . . . Overload Shots . | . . . . . Overflow Damage . | . . . . . Projectiles . | . . . . . Explosions . | . . . . . Melee . | . . . . . Knockbacks . | . . . . . Impact . | . . . . . Kinetic . | . . . . . Secondary . | . . . . . Self-Inflicted Damage 9 | . . . . 9 Shots . | . . . . . Rammed 4 | . . . . 4 Targets Rammed 4 | . . . . 4 Kicked . | . . . . . Crushed . | . . . . . Highest Temperature . | . . . . . Average Temperature . | . . . . . Received Heat Transfer 111 | . . . 9 102 Siege Activations . | . . . . . Robots Corrupted . | . . . . . Combat Hostiles . | . . . . . Parts Fried . | . . . . . Impact Corruptions . | . . . . . Robots Melted . | . . . . . Combat Hostiles . | . . . . . Parts Melted . | . . . . . Heat Transferred . | . . . . . Parts Sabotaged . | . . . . . Parts Stolen . | . . . . . Parts Stripped . | . . . . . Power Chain Reactions . | . . . . . Alert | -11 -10 -9 -9 -9 ------- Run | Yrd Mat Mat Sto Gar Peak Influence 245 | . 45 69 49 245 Initial 31 | . . 18 28 31 Average 73 | . 39 34 29 126 Maximum Alert Level 1 | . . . . 1 Low Security (%) 95 | 100 100 100 100 90 Level 1 4 | . . . . 9 Level 2 . | . . . . . Level 3 . | . . . . . Level 4 . | . . . . . Level 5 . | . . . . . High Security . | . . . . . Max Security . | . . . . . Squads Dispatched 1 | . 1 . . . Investigation . | . . . . . Extermination . | . . . . . Reinforcement 1 | . 1 . . . Assault . | . . . . . Garrison . | . . . . . Intercept . | . . . . . Searches Triggered . | . . . . . Construction Impeded . | . . . . . Haulers Reinforced . | . . . . . Active Scanning Responses . | . . . . . Cargo Convoy Interrupts . | . . . . . Stealth | -11 -10 -9 -9 -9 --------- Run | Yrd Mat Mat Sto Gar Distress Signals . | . . . . . Communications Jammed . | . . . . . Distress Signals . | . . . . . Times Spotted 32 | . 2 2 1 27 Peak Tracking Total 15 | . 1 1 2 15 Tactical Retreats 4 | . . 1 . 3 Traps | -11 -10 -9 -9 -9 ------- Run | Yrd Mat Mat Sto Gar Traps Triggered 4 | . . . 3 1 Indirectly . | . . . . . Trap Hack Attempts . | . . . . . Triggered . | . . . . . Disarmed . | . . . . . Reprogrammed 1 | . 1 . . . Reused . | . . . . . Traps Extracted . | . . . . . Installed . | . . . . . Triggered . | . . . . . Machines | -11 -10 -9 -9 -9 ---------- Run | Yrd Mat Mat Sto Gar Machines Disabled . | . . . . . Max in Single Turn . | . . . . . Machines Repaired . | . . . . . Machines Dismantled . | . . . . . Machines Sabotaged . | . . . . . Overloaded Fab Kills . | . . . . . Hacking | -11 -10 -9 -9 -9 --------- Run | Yrd Mat Mat Sto Gar Machines Accessed 6 | . 2 1 2 1 Terminals 3 | . 2 . . 1 Fabricators . | . . . . . Repair Stations 1 | . . 1 . . Recycling Units 1 | . . . 1 . Scanalyzers . | . . . . . Garrison Access 1 | . . . 1 . Total Hacks 14 | . 5 1 7 1 Successful 9 | . 3 1 4 1 Failed 5 | . 2 . 3 . Catastrophic . | . . . . . Database Lockouts . | . . . . . Manual . | . . . . . Terminals 6 | . 5 . . 1 Fabricators . | . . . . . Repair Stations 1 | . . 1 . . Recycling Units 3 | . . . 3 . Scanalyzers . | . . . . . Garrison Access 4 | . . . 4 . Terminal Hacks 4 | . 3 . . 1 Emergency Access Points 1 | . . . . 1 Locate Traps 1 | . 1 . . . Reprogram Traps 1 | . 1 . . . Recall Reinforcements 1 | . 1 . . . Fabricator Hacks . | . . . . . Repair Station Hacks 1 | . . 1 . . Refit 1 | . . 1 . . Recycling Unit Hacks 2 | . . . 2 . Retrieve Matter 1 | . . . 1 . Retrieve Components 1 | . . . 1 . Scanalyzer . | . . . . . Garrison Access Hacks 2 | . . . 2 . Unlock Access 1 | . . . 1 . Coupler Status 1 | . . . 1 . Unauthorized Hacks . | . . . . . Terminals . | . . . . . Fabricators . | . . . . . Repair Stations . | . . . . . Recycling Units . | . . . . . Scanalyzers . | . . . . . Garrison Access . | . . . . . Data Cores Recovered . | . . . . . Used . | . . . . . Hacking Detections 2 | . 1 . 1 . Full Trace Events . | . . . . . Feedback Events . | . . . . . Feedback Blocked . | . . . . . Robot Schematics Acquired . | . . . . . Robots Built . | . . . . . Authchips . | . . . . . Time . | . . . . . Total Robot Build Rating . | . . . . . Part Schematics Acquired . | . . . . . Parts Built . | . . . . . Authchips . | . . . . . Time . | . . . . . Total Part Build Rating . | . . . . . Parts Repaired . | . . . . . Time . | . . . . . Parts Recycled . | . . . . . Recycled Matter . | . . . . . Retrieved Matter . | . . . . . Retrieved Components 3 | . . . 3 . Parts Scanalyzed . | . . . . . Part Schematics Acquired . | . . . . . Parts Damaged . | . . . . . Bothacking | -11 -10 -9 -9 -9 ------------ Run | Yrd Mat Mat Sto Gar Used RIF Installer 1 | . . . . 1 Robots Hacked . | . . . . . Non-combat . | . . . . . Combat . | . . . . . Robot Hacks Applied . | . . . . . Relay Couplers Released . | . . . . . Fabnet Peak Effective % . | . . . . . Robots Rewired . | . . . . . Allies Hacked . | . . . . . Hacks Repelled . | . . . . . Allies | -11 -10 -9 -9 -9 -------- Run | Yrd Mat Mat Sto Gar Total Allies . | . . . . . Largest Group . | . . . . . Highest-Rated Group . | . . . . . Highest-Rated Ally . | . . . . . Total Orders . | . . . . . Ally Attacks . | . . . . . Total Damage . | . . . . . Kills . | . . . . . Allies Corrupted . | . . . . . Allies Melted . | . . . . . Intel | -11 -10 -9 -9 -9 ------- Run | Yrd Mat Mat Sto Gar Robot Analysis Total . | . . . . . Derelict Logs Recovered . | . . . . . Drone Launches . | . . . . . Drone Recoveries . | . . . . . Exploration | -11 -10 -9 -9 -9 ------------- Run | Yrd Mat Mat Sto Gar Turns Passed 456 | 13 65 111 70 197 Spaces Moved 828 | 23 130 192 49 434 Core 523 | 23 130 181 49 140 Treads . | . . . . . Legs . | . . . . . Wheels . | . . . . . Hover 11 | . . 11 . . Flight 294 | . . . . 294 Fastest Speed 37 | 50 50 50 50 37 Average Speed 46 | 50 50 51 50 41 Slowest Speed 100 | 50 50 100 50 50 Overloaded Moves . | . . . . . Propulsion Burnouts . | . . . . . Robots Hopped 3 | . . . . 3 Cave-ins Triggered . | . . . . . Exploration Rate (%) 21 | 3 23 15 9 57 Regions Visited 4 Branch Regions 1 Pre-discovered Areas . | . . . . . Known Exits Taken 1 | . . . 1 . Unknown Exits Taken 3 | 1 1 1 . . Scrap Searched . | . . . . . Spaces Dug . | . . . . . Terrain Destroyed . | . . . . . Melee . | . . . . . Projectile . | . . . . . AOE . | . . . . . Terrain Rammed . | . . . . . Walls Destroyed . | . . . . . Machines Disabled . | . . . . . Actions | -11 -10 -9 -9 -9 --------- Run | Yrd Mat Mat Sto Gar Total 896 | 23 129 206 93 445 Wait 6 | . . 1 . 5 Move 819 | 22 129 191 48 429 Hop 2 | . . . . 2 Pick Up . | . . . . . Fast Attach 10 | 1 . 4 . 5 Attach . | . . . . . Detach . | . . . . . Swap . | . . . . . Drop 10 | . . 10 . . Fire . | . . . . . Melee . | . . . . . Ram 4 | . . . . 4 Kick . | . . . . . Crush . | . . . . . Escape Stasis 45 | . . . 45 . Rewire . | . . . . . Trap . | . . . . . Miscellaneous . | . . . . . Route ------- -11/Scrapyard -10/Materials -9/Materials -9/Storage -9/Garrison (discovered 1 exit: [*Rec]) History --------- Turn | Location | Event 4 | -11/Scrapyard | Discovered new exit (range 15) 14 | -11/Scrapyard | Entered Materials 56 | -10/Materials | Discovered new exit (range 12) 79 | -10/Materials | Entered another Materials area 79 | -9/Materials | Evolved 2 slots: Propulsion x1, Utility x1 109 | -9/Materials | Discovered new exit (range 15) 190 | -9/Materials | Entered Storage 248 | -9/Storage | Identified exit to Garrison 260 | -9/Storage | Entered Garrison 311 | -9/Garrison | Build established: Mutant 328 | -9/Garrison | Triggered checkpoint 367 | -9/Garrison | Discovered new exit (range 8) 388 | -9/Garrison | Triggered checkpoint 425 | -9/Garrison | Core integrity fell below 50% 430 | -9/Garrison | Triggered checkpoint 435 | -9/Garrison | Core integrity fell below 20% 442 | -9/Garrison | Triggered checkpoint 450 | -9/Garrison | Installed Relay Interface Framework 457 | -9/Garrison | Destroyed by G-34 Mercenary with Small Laser Last Messages --------------- 00421_ Acquired Flight Unit. Garrison Door activated. 00422_ Flight Unit destroyed. 00423_ Acquired Flight Unit. 00424_ S-10 Pest destroyed. 00425_ Acquired 12 matter. 00425_ Acquired Flight Unit. 00426_ Flight Unit destroyed. 00430_ Beams of light sweep through the air. An alarm sounds. 00440_ Connecting with Garrison Terminal... >>Access(Emergency) Found 42 emergency access points. Map updated. 00449_ Triggered Alarm Trap. 00449_ An alarm sounds. Initiating installation procedure... 00450_ Relay Interface Framework installed. 00453_ Flight Unit destroyed. 00455_ Slammed into G-34 Mercenary. Map ----- +----------------------------------------------------+ | | | | | ?????????????????????????????????????????????????? | | ?????????????????????????????????????????????????? | | ?????????????????????????????????????????????????? | | ?????????????????????????????????????????????????? | | ?????????????????????????????????????????????????? | | ?????????????????????????????????????????????????? | | ?????????????????????????????????????????????????? | | ?????????????????????????????????????????????????? | | ?????????????????????????????????????????????????? | | ?????????????????????????????????????????????????? | | ?????????????????????????????????????????????????? | | ?????????????????????????????????????????????????? | | ????????????????????#####????????????????????????? | | ????????????????????#"""#????????????????????????? | | ????????????????????#" "#????????????????????????? | | ????????????????????#" "#????????????????????????? | | ????????????????????#" "#????????????????????????? | | ????????????????????#^ #????????????????????????? | | ????????????????????## ##????????????????????????? | | ?????????????????????# #?????????????????????????? | | ?????????????????????# #??#####??????????????????? | | ?????????????????????# #??# #??????????????????? | | ?????????????????????#s#### ###????????????????? | | ?????????????????????#g @g #????????????????? | | ?????????????????????#s#####+## #????????????????? | | ????????????????????" #??????# #????????????????? | | ???????????????????#" #??????# #????????????????? | | ???????????????????#" #??????# #????????????????? | | ???????????????????#"# #??????# #????????????????? | | ???????????????????###+#??????# ##???????????????? | | ??????????????????????????????# T#???????????????? | | ??????????????????????????????# ##???????????????? | | ??????????????????????+######## #######??????????? | | ??????????????? #??????????? | | ??????????????? #??????????? | | ??????????????????######## ###+#### #??????????? | | ?????????????????????????# ???? ???# #??????? ?? | | ?????????????????????????#????? ???# #??????? #? | | ??????????????????????????????? ???+ #??????? #? | | ??????????????????????????????? ???# #??????# +? | | ????????????????????????????+?? ???# ######## #? | | ??????????????????????????????? ???# ## ## #? | | ??????????????????????????????? ??## ## ## ## | | ?????????????????????????# ###+### # | | ?????????????????????????# + | | ?????????????????????????# # | | ?????????????????????????########## ## ## # | | ??????????????????????????????????# ## ## # | +----------------------------------------------------+ Best States ------------- Heat Dissipation 28 Energy Generation 10 Energy Capacity 125 Matter Stores 264 Matter Capacity 300 Sight Range 16 Terrain Scan Density 10 Armor Coverage 160 Evasion (%) 62 Item Schematics ----------------- None Robot Schematics ------------------ None Fabricated ------------ Nothing Alien Tech Used ----------------- None Achievements -------------- GoHome() Challenges ------------ None Game ------ Seed NovaImprovedSystem Manual? 0 Play Time 00:10:01 Cumulative 18.1 hours Start 2024.04.13 @ 22:15:45 End 2024.04.13 @ 22:25:45 Sessions 1 Manual Loads 0 Difficulty Rogue Special Mode None Game No. 5 Rogue 1 Adventurer 4 Explorer 0 Win Type - Total 0 Types 0/0/0/0/0/0/0/0/0 Lore% 5 Gallery% 14 Achievement% 13 Wizard Run 0 Options --------- Layout 1 ASCII 0 Keyboard 0 Movement Mouse Keybinds 0 Fullscreen 1 Font 24/Smallcaps Map View 50x35 Zoom Use 0% Tactical HUD 1 Map Filters NONE Filters NONE Steam 1 RUN: fba79e74-2e22-406a-919d-816b43c2b11c